fUST/lending_fUST_20251111
["ID","MTS","AMOUNT","RATE_DAILY","PERIOD"]
[393600914,1762840232620,-203.76750985,0.0001642,2]
[393600916,1762840232630,-267.02127525,0.00016599,2]
[393600921,1762840232667,-134.97872475,0.00016599,2]
[393600923,1762840232677,-300.0,0.00016668,2]
[393600925,1762840232686,-1200.0,0.00016668,2]
[393600926,1762840232696,-221.00637685,0.00016669,2]
[393600928,1762840232705,-500.0,0.00016669,2]
[393600930,1762840232714,-500.0,0.00016669,2]
[393600932,1762840232723,-93.96880703,0.00016669,2]
[393600935,1762840232735,-406.03119297,0.00016669,2]
[393600937,1762840232744,-244.75641595,0.00016669,2]
[393600939,1762840232753,-4.21239108,0.00016669,2]
[393601019,1762840238773,-360.82507419,0.00016669,2]
[393601020,1762840238830,-134.96253473,0.00016669,2]
[393601021,1762840238840,-500.0,0.00016669,2]
[393601022,1762840238851,-390.49382122,0.00016669,2]
[393601023,1762840238887,-109.50617878,0.00016669,2]
[393601024,1762840238897,-500.0,0.00016669,2]
[393601025,1762840238907,-613.67257699,0.00016669,2]
[393601026,1762840238917,-500.0,0.00016669,2]
[393601027,1762840238927,-500.0,0.00016669,2]
[393601028,1762840238937,-385.43358334,0.00016669,2]
[393601029,1762840238947,-500.0,0.00016669,2]
[393601030,1762840238956,-500.0,0.00016669,2]
[393601031,1762840238966,-450.0,0.00016669,2]
[393601032,1762840238975,-327.34568535,0.00016669,2]
[393601033,1762840238985,-433.00577548,0.00016669,2]
[393601034,1762840238995,-500.0,0.00016669,2]
[393601035,1762840239005,-528.43117933,0.00016669,2]
[393601036,1762840239014,-500.0,0.00016669,2]
[393601037,1762840239024,-500.0,0.00016669,2]
[393601038,1762840239037,-493.58054514,0.00016669,2]
[393601039,1762840239047,-24015.60546143,0.0001667,2]
[393601066,1762840243975,-560488.30367899,0.0001667,2]
[393601067,1762840243985,-500.62429769,0.00016673,2]
[393601068,1762840243994,-500.0,0.00016673,2]
[393601069,1762840244004,-532.04793938,0.00016673,2]
[393601070,1762840244014,-196.93,0.000167,2]
[393601071,1762840244023,-500.0,0.00016773,2]
[393601072,1762840244037,-500.0,0.00016773,2]
[393601073,1762840244047,-500.0,0.00016773,2]
[393601074,1762840244057,-500.0,0.00016773,2]
[393601075,1762840244067,-260.44206278,0.00016773,2]
[393601089,1762840246970,-243.30363708,0.00016773,2]
[393601090,1762840246981,-500.0,0.00016773,2]
[393601091,1762840246990,-2167.0,0.000168,2]
[393601092,1762840247000,-348.0,0.00016811,2]
[393601093,1762840247010,-338.19704044,0.00016869,2]
[393601094,1762840247019,-376.33100602,0.00016964,2]
[393601095,1762840247031,-306.9040536,0.00016964,2]
[393601096,1762840247041,-316.86077033,0.00016964,2]
[393601097,1762840247051,-299.79218566,0.00016964,2]
[393601098,1762840247060,-453.05157542,0.00016964,2]
[393601099,1762840247071,-570.34938659,0.00016964,2]
[393601100,1762840247081,-1013.95446505,0.00016964,2]
[393601101,1762840247091,-815.49283575,0.00016964,2]
[393601102,1762840247101,-1449.76504134,0.00016964,2]
[393601103,1762840247113,-500.0,0.00016964,2]
[393601104,1762840247123,-500.0,0.00016999,2]
[393601105,1762840247132,-500.0,0.00016999,2]
[393601106,1762840247141,-514.01202496,0.00016999,2]
[393601107,1762840247151,-500.0,0.00016999,2]
[393601108,1762840247160,-500.0,0.00016999,2]
[393601109,1762840247170,-151.0,0.00016999,2]
[393601110,1762840247179,-500.0,0.00016999,2]
[393601111,1762840247189,-151.0,0.00016999,2]
[393601112,1762840247199,-155.27614153,0.00016999,2]
[393601113,1762840247209,-154.47047855,0.00016999,2]
[393601114,1762840247220,-21479.97145059,0.00017,2]
[393601115,1762840247230,-151.0,0.00017,2]
[393601116,1762840247239,-151.0,0.00017,2]
[393601117,1762840247249,-151.0,0.00017,2]
[393601118,1762840247259,-151.0,0.00017,2]
[393601119,1762840247268,-151.0,0.00017,2]
[393601120,1762840247278,-151.0,0.00017,2]
[393601121,1762840247288,-153.0,0.00017,2]
[393601122,1762840247298,-435.0,0.00017047,2]
[393601123,1762840247307,-151.0,0.00017054,2]
[393601124,1762840247316,-500.0,0.00017054,2]
[393601125,1762840247326,-151.0,0.00017054,2]
[393601126,1762840247336,-199.01412206,0.00017055,2]
[393601127,1762840247345,-200.56032654,0.00017055,2]
[393601128,1762840247354,-151.0,0.00017055,2]
[393601129,1762840247363,-199.42538137,0.00017055,2]
[393601130,1762840247372,-151.0,0.00017055,2]
[393601131,1762840247487,-236.40508137,0.00017055,2]
[393601132,1762840247498,-611.97214201,0.00017069,2]
[393601133,1762840247507,-500.0,0.00017069,2]
[393601134,1762840247517,-500.0,0.00017069,2]
[393601135,1762840247526,-500.0,0.00017069,2]
[393601136,1762840247536,-168.0,0.00017078,2]
[393601137,1762840247546,-151.0,0.00017109,2]
[393601138,1762840247555,-500.0,0.00017109,2]
[393601139,1762840247565,-151.0,0.00017109,2]
[393601140,1762840247574,-283.72004059,0.0001711,2]
[393601141,1762840247583,-198.48410265,0.0001711,2]
[393601142,1762840247594,-1657.60453812,0.00017118,2]
[393601143,1762840247603,-517.47,0.00017119,2]
[393601144,1762840247612,-177.70769686,0.0001713,2]
[393601145,1762840247621,-151.0,0.00017163,2]
[393601146,1762840247630,-500.0,0.00017163,2]
[393601147,1762840247639,-151.0,0.00017163,2]
[393601148,1762840247648,-362.0,0.00017196,2]
[393601149,1762840247657,-250.0,0.000172,2]
[393601150,1762840247667,-218.8495126,0.00017218,2]
[393601151,1762840247675,-500.0,0.00017218,2]
[393601152,1762840247684,-151.0,0.00017218,2]
[393601153,1762840247693,-1024.57430871,0.00017221,2]
[393601154,1762840247703,-500.0,0.00017238,2]
[393601155,1762840247712,-500.0,0.00017273,2]
[393601156,1762840247721,-183.60246309,0.00017273,2]
[393601157,1762840247731,-194.88336462,0.00017294,2]
[393601158,1762840247740,-153.0,0.000173,2]
[393601159,1762840247750,-393.8475993,0.000173,2]
[393601160,1762840247759,-153.0,0.000173,2]
[393601161,1762840247768,-303.3075285,0.000173,2]
[393601162,1762840247777,-1190.3106516,0.000173,2]
[393601163,1762840247786,-153.776078,0.000173,2]
[393601164,1762840247795,-505.96645197,0.00017321,2]
[393601165,1762840247804,-505.57926598,0.00017321,2]
[393601166,1762840247813,-501.36216191,0.00017321,2]
[393601167,1762840247822,-500.0,0.00017321,2]
[393601168,1762840247831,-1000.0,0.00017321,2]
[393601169,1762840247840,-500.0,0.00017328,2]
[393601170,1762840247850,-385.76918281,0.0001735,2]
[393601171,1762840247859,-362.0,0.00017357,2]
[393601172,1762840247868,-500.0,0.00017383,2]
[393601173,1762840247877,-309.1682607,0.00017401,2]
[393601174,1762840247886,-502.27774391,0.00017431,2]
[393601175,1762840247895,-500.0,0.00017431,2]
[393601176,1762840247904,-300.28362745,0.00017431,2]
[393601177,1762840247914,-501.81206718,0.00017431,2]
[393601178,1762840247923,-500.0,0.00017437,2]
[393601179,1762840247932,-502.52818255,0.0001745,2]
[393601180,1762840247941,-500.0,0.0001745,2]
[393601181,1762840247951,-503.00962362,0.0001745,2]
[393601182,1762840247960,-515.75528845,0.0001745,2]
[393601183,1762840247970,-500.0,0.0001745,2]
[393601184,1762840247979,-4409.0,0.00017484,2]
[393601185,1762840247989,-630.155,0.00017484,2]
[393601186,1762840247998,-2167.0,0.00017484,2]
[393601187,1762840248008,-987.267,0.00017484,2]
[393601188,1762840248017,-362.0,0.00017485,2]
[393601189,1762840248026,-500.0,0.00017492,2]
[393601190,1762840248040,-350.79005631,0.00017501,2]
[393601191,1762840248051,-500.0,0.00017512,2]
[393601192,1762840248060,-500.0,0.00017525,2]
[393601193,1762840248070,-353.33515509,0.00017533,2]
[393601194,1762840248081,-319.55398049,0.00017545,2]
[393601195,1762840248091,-500.0,0.00017547,2]
[393601196,1762840248101,-500.0,0.00017559,2]
[393601197,1762840248112,-500.0,0.00017559,2]
[393601198,1762840248122,-463.18858175,0.00017559,2]
[393601199,1762840248131,-500.0,0.00017569,2]
[393601200,1762840248141,-215.64034359,0.00017569,2]
[393601201,1762840248151,-500.0,0.00017598,2]
[393601202,1762840248161,-504.32632973,0.00017598,2]
[393601203,1762840248170,-500.0,0.00017602,2]
[393601204,1762840248179,-500.0,0.00017616,2]
[393601205,1762840248188,-504.07943084,0.00017616,2]
[393601206,1762840248197,-503.67418325,0.00017616,2]
[393601207,1762840248206,-500.0,0.00017616,2]
[393601208,1762840248216,-500.0,0.00017616,2]
[393601209,1762840248227,-500.0,0.00017644,2]
[393601210,1762840248236,-500.0,0.00017657,2]
[393601211,1762840248246,-173.216,0.00017658,2]
[393601212,1762840248255,-1729.18,0.00017681,2]
[393601213,1762840248265,-159.44073331,0.00017688,2]
[393601214,1762840248274,-500.0,0.00017711,2]
[393601215,1762840248283,-500.0,0.00017766,2]
[393601216,1762840248293,-500.0,0.00017786,2]
[393601217,1762840248303,-556.21111,0.00017816,2]
[393601218,1762840248312,-503.44567732,0.00017816,2]
[393601219,1762840248321,-500.0,0.00017816,2]
[393601220,1762840248335,-500.0,0.00017821,2]
[393601221,1762840248345,-430.48093592,0.00017868,2]
[393601222,1762840248355,-500.0,0.00017876,2]
[393601223,1762840248364,-198.7046229,0.00017931,2]
[393601224,1762840248374,-500.0,0.00017951,2]
[393601225,1762840248383,-607.06947031,0.00017966,2]
[393601226,1762840248391,-506.71385607,0.00017979,2]
[393601227,1762840248401,-2202.47702407,0.00017988,2]
[393601228,1762840248410,-1000.0,0.00017998,2]
[393601229,1762840248419,-1000.0,0.00017998,2]
[393601230,1762840248427,-483.0,0.00018,2]
[393601231,1762840248436,-491.63051284,0.0001806,2]
[393601232,1762840248446,-502.12556153,0.00018073,2]
[393601233,1762840248455,-887.10813729,0.00018117,2]
[393601234,1762840248464,-1002.99166813,0.00018146,2]
[393601235,1762840248473,-533.58385493,0.00018152,2]
[393601236,1762840248483,-274.57743277,0.00018152,2]
[393601237,1762840248493,-153.0,0.00018162,2]
[393601238,1762840248502,-153.0,0.00018162,2]
[393601239,1762840248511,-153.0,0.00018162,2]
[393601240,1762840248520,-153.0,0.00018162,2]
[393601241,1762840248529,-153.0,0.00018162,2]
[393601242,1762840248538,-153.0,0.00018162,2]
[393601243,1762840248547,-153.0,0.00018162,2]
[393601244,1762840248556,-153.0,0.00018162,2]
[393601245,1762840248565,-153.0,0.00018162,2]
[393601246,1762840248574,-153.0,0.00018162,2]
[393601247,1762840248584,-153.0,0.00018162,2]
[393601248,1762840248593,-153.0,0.00018162,2]
[393601249,1762840248602,-153.0,0.00018162,2]
[393601250,1762840248611,-154.8298397,0.00018162,2]
[393601251,1762840248620,-153.0,0.00018162,2]
[393601252,1762840248629,-243.124966,0.00018162,2]
[393601253,1762840248638,-1000.0,0.00018164,2]
[393601254,1762840248647,-504.69430008,0.00018164,2]
[393601255,1762840248656,-423.32306835,0.00018164,2]
[393601256,1762840248666,-177.25876765,0.00018166,2]
[393601257,1762840248675,-151.0,0.00018166,2]
[393601258,1762840248684,-174.34657869,0.00018166,2]
[393601259,1762840248692,-151.0,0.00018166,2]
[393601260,1762840248702,-151.0,0.00018166,2]
[393601261,1762840248711,-500.0,0.00018173,2]
[393601262,1762840248720,-153.0,0.00018178,2]
[393601263,1762840248730,-153.0,0.00018178,2]
[393601264,1762840248739,-153.0,0.00018178,2]
[393601265,1762840248748,-306.0,0.00018178,2]
[393601266,1762840248757,-153.0,0.00018178,2]
[393601267,1762840248767,-500.0,0.0001819,2]
[393601268,1762840248776,-500.0,0.00018192,2]
[393601269,1762840248785,-507.93500351,0.00018192,2]
[393601270,1762840248793,-420.0,0.00018211,2]
[393601271,1762840248803,-407.0,0.00018302,2]
[393601272,1762840248812,-501.12081692,0.00018364,2]
[393601273,1762840248821,-240.44566163,0.0001842,2]
[393601274,1762840248830,-515.12687604,0.00018546,2]
[393601275,1762840248839,-1039.24752735,0.00018546,2]
[393601276,1762840248849,-150.56783676,0.00018712,2]
[393601277,1762840248859,-1000.0,0.00018721,2]
[393601278,1762840248868,-500.0,0.00018867,2]
[393601279,1762840248877,-500.0,0.00018867,2]
[393601280,1762840248887,-195.8546315,0.00019,2]
[393601281,1762840248896,-151.0,0.00019,2]
[393601282,1762840248905,-218.94000893,0.00019089,2]
[393601283,1762840248914,-3639.59318679,0.0001909,2]
[393601284,1762840248923,-600.0,0.00019107,2]
[393601285,1762840248932,-561.28088235,0.0001911,2]
[393601286,1762840248942,-3639.59318679,0.00019155,2]
[393601287,1762840248951,-2442.38216958,0.00019178,2]
[393601288,1762840248961,-151.0,0.00019178,2]
[393601289,1762840248970,-151.0,0.00019178,2]
[393601290,1762840248979,-156.696299,0.00019178,2]
[393601291,1762840248988,-152.330977,0.00019178,2]
[393601292,1762840248997,-465.476156,0.00019178,2]
[393601293,1762840249007,-207.350891,0.00019178,2]
[393601294,1762840249015,-465.476156,0.00019178,2]
[393601295,1762840249024,-465.476156,0.00019178,2]
[393601296,1762840249039,-465.476156,0.00019178,2]
[393601297,1762840249049,-151.847502,0.00019178,2]
[393601298,1762840249059,-405.32244257,0.00019184,2]
[393601299,1762840249068,-500.0,0.00019194,2]
[393601300,1762840249079,-350.0,0.00019203,15]
[393601301,1762840249088,-3639.59318679,0.0001922,2]
[393601302,1762840249097,-171.57646,0.0001922,7]
[393601303,1762840249107,-151.0,0.0001922,7]
[393601304,1762840249117,-151.0,0.0001922,7]
[393601305,1762840249127,-1500.0,0.00019268,2]
[393601306,1762840249136,-3639.59318679,0.00019285,2]
[393601307,1762840249146,-151.0,0.00019288,7]
[393601308,1762840249156,-151.0,0.00019288,7]
[393601309,1762840249167,-800.0,0.00019292,2]
[393601310,1762840249176,-151.0,0.000193,2]
[393601311,1762840249186,-800.0,0.00019309,2]
[393601312,1762840249196,-160.0,0.00019347,2]
[393601313,1762840249205,-3639.59318679,0.0001935,2]
[393601314,1762840249215,-1000.0,0.00019415,2]
[393601315,1762840249224,-502.45891266,0.00019415,2]
[393601316,1762840249233,-3639.59318679,0.00019416,2]
[393601317,1762840249242,-465.476156,0.00019416,7]
[393601318,1762840249255,-465.476156,0.00019416,7]
[393601319,1762840249264,-465.476156,0.00019416,7]
[393601320,1762840249273,-465.476156,0.00019416,7]
[393601321,1762840249284,-502.23306557,0.00019425,2]
[393601322,1762840249294,-422.39679512,0.00019425,2]
[393601323,1762840249304,-3639.59318679,0.00019481,2]
[393601324,1762840249313,-502.15269075,0.00019544,2]
[393601325,1762840249323,-500.0,0.00019544,2]
[393601326,1762840249332,-3639.59318679,0.00019546,2]
[393601327,1762840249342,-166.0,0.00019573,2]
[393601328,1762840249351,-18197.07084262,0.000196,4]
[393601329,1762840249360,-151.0,0.000196,7]
[393601330,1762840249369,-151.0,0.000196,7]
[393601331,1762840249379,-3639.59318679,0.00019611,2]
[393601332,1762840249387,-3643.23277997,0.00019676,2]
[393601333,1762840249396,-770.07589556,0.00019742,2]
[393601334,1762840249405,-2000.0,0.00019816,2]
[393601335,1762840249415,-260.0,0.00019895,2]
[393601336,1762840249426,-587.0,0.00019898,2]
[393601337,1762840249436,-151.0,0.00019962,7]
[393601338,1762840249446,-1202.3110019,0.00019963,2]
[393601339,1762840249456,-539.0,0.0002,2]
[393601340,1762840249465,-151.87915814,0.0002,2]
[393601341,1762840249474,-465.476156,0.0002,7]
[393601342,1762840249484,-465.476156,0.0002,7]
[393601343,1762840249493,-465.476156,0.0002,7]
[393601344,1762840249503,-465.476156,0.0002,7]
[393601345,1762840249513,-1003.800184,0.0002,2]
[393601346,1762840249521,-502.06208137,0.00020092,2]
[393601347,1762840249530,-798.840409,0.00020187,2]
[393601348,1762840249540,-2500.0,0.00020364,2]
[393601349,1762840249549,-277.1238134,0.0002042,2]
[393601350,1762840249558,-360.0,0.00020443,2]
[393601351,1762840249568,-571.8,0.00020484,2]
[393601352,1762840249578,-987.0,0.00020484,2]
[393601353,1762840249589,-205.9019119,0.00020549,5]
[393601354,1762840249600,-169.60217799,0.00020632,5]
[393601355,1762840249612,-162.82399718,0.00020709,2]
[393601356,1762840249622,-2489.61657714,0.00020912,2]
[393601357,1762840249633,-567.15746454,0.00020991,2]
[393601358,1762840249643,-151.0,0.000213,4]
[393601359,1762840249652,-5000.0,0.00021548,2]
[393601360,1762840249662,-171.951775,0.00021548,7]
[393601361,1762840249672,-204.01873,0.00021548,7]
[393601362,1762840249681,-823.0,0.0002174,2]
[393601363,1762840249691,-392.519677,0.00021873,2]
[393601364,1762840249701,-500.0,0.00021914,2]
[393601365,1762840249711,-500.0,0.00021914,2]
[393601366,1762840249720,-500.0,0.00021914,2]
[393601367,1762840249729,-500.0,0.00021914,2]
[393601368,1762840249739,-500.0,0.00021914,2]
[393601369,1762840249748,-500.0,0.00021914,2]
[393601370,1762840249757,-500.0,0.00021914,2]
[393601371,1762840249766,-500.0,0.00021914,2]
[393601372,1762840249775,-227.465167,0.00021918,7]
[393601373,1762840249784,-151.0,0.00021918,2]
[393601374,1762840249793,-153.0,0.00021918,2]
[393601375,1762840249802,-151.0,0.00021918,2]
[393601376,1762840249811,-153.0,0.00021918,2]
[393601377,1762840249820,-254.14550374,0.00021918,2]
[393601378,1762840249829,-153.0,0.00021918,2]
[393601379,1762840249838,-153.0,0.00021918,2]
[393601380,1762840249847,-153.0,0.00021918,2]
[393601381,1762840249856,-205.55692712,0.00021918,2]
[393601382,1762840249865,-500.0,0.00021918,2]
[393601383,1762840249874,-500.0,0.00021918,2]
[393601384,1762840249883,-500.0,0.00021918,2]
[393601385,1762840249892,-500.0,0.00021918,2]
[393601386,1762840249900,-597.39827076,0.00021918,2]
[393601387,1762840249910,-500.0,0.00021918,2]
[393601388,1762840249919,-501.10859189,0.00021973,2]
[393601389,1762840249928,-198.65916483,0.00021973,2]
[393601390,1762840249938,-507.10307466,0.00021973,2]
[393601391,1762840249947,-500.0,0.00021973,2]
[393601392,1762840249957,-520.5044,0.00021973,2]
[393601393,1762840249967,-500.0,0.00021973,2]
[393601394,1762840249976,-500.0,0.00021973,2]
[393601395,1762840249985,-500.0,0.00021973,2]
[393601396,1762840249994,-500.0,0.00021973,2]
[393601397,1762840250003,-500.0,0.00021973,2]
[393601398,1762840250012,-500.55466398,0.00021973,2]
[393601399,1762840250113,-2032.43,0.00022,14]
[393601400,1762840250123,-59989.1,0.00022,7]
[393601401,1762840250132,-5688.56180262,0.00022,5]
[393601402,1762840250142,-3539.08,0.00022,7]
[393601403,1762840250152,-200.62461576,0.00022,2]
[393601404,1762840250162,-170.772749,0.00022,7]
[393601405,1762840250171,-465.476156,0.00022,7]
[393601406,1762840250182,-465.476156,0.00022,7]
[393601407,1762840250193,-465.476156,0.00022,7]
[393601408,1762840250204,-465.476156,0.00022,7]
[393601409,1762840250214,-500.0,0.00022324,2]
[393601410,1762840250224,-500.0,0.00022324,2]
[393601411,1762840250236,-839.95,0.00022324,2]
[393601412,1762840250247,-500.0,0.00022324,2]
[393601413,1762840250257,-14377.3,0.00022327,2]
[393601414,1762840250266,-500.0,0.00022337,2]
[393601415,1762840250277,-156.5073693,0.00022337,2]
[393601416,1762840250288,-14377.3,0.00022337,2]
[393601417,1762840250298,-14377.3,0.00022337,2]
[393601418,1762840250308,-14377.3,0.00022337,2]
[393601419,1762840250318,-14377.3,0.00022337,2]
[393601420,1762840250328,-14377.3,0.00022337,2]
[393601421,1762840250337,-14377.3,0.00022337,2]
[393601422,1762840250346,-14377.3,0.00022337,2]
[393601423,1762840250355,-14377.3,0.00022337,2]
[393601424,1762840250366,-14377.3,0.00022337,2]
[393601425,1762840250375,-14377.3,0.00022337,2]
[393601426,1762840250384,-14377.3,0.00022337,2]
[393601427,1762840250394,-14377.3,0.00022337,2]
[393601428,1762840250404,-12064.07318314,0.00022337,2]
[393601429,1762840261129,249.7197216,0.0001826,3]
[393601430,1762840269039,5000.0,0.0001826,3]
[393601431,1762840284331,206.72415513,0.0001826,3]
[393601433,1762840681409,8142.24,0.00016082,2]
[393601439,1762841028281,675.0,0.00032877,120]
[393601444,1762841142028,-173.21729291,0.00016239,2]
[393601445,1762841142053,-90.88444817,0.00016403,2]
[393601446,1762841276734,-167.10015383,0.00016486,2]
[393601447,1762841384249,-24.36354388,0.00016486,2]
[393601448,1762841384271,-231.2677652,0.00016568,2]
[393601449,1762841386967,-265.55802428,0.00016568,2]
[393601450,1762841389230,-261.66739399,0.00016568,2]
[393601451,1762841391985,-46.50681653,0.00016568,2]
[393601452,1762841392007,-154.70446379,0.00016569,2]
[393601453,1762841392029,-45.90502079,0.00016569,2]
[393601454,1762841394021,-258.31547562,0.00016569,2]
[393601455,1762841396934,-195.77950359,0.00016569,2]
[393601456,1762841396956,-165.22782471,0.00016569,2]
[393601457,1762841399710,-163.50478647,0.00016569,2]
[393601458,1762841402019,-171.26738882,0.00016569,2]
[393601459,1762841402042,-10.88844084,0.00016569,2]
[393601460,1762841406186,-267.97438449,0.00016568,2]
[393601462,1762841409275,-152.84714342,0.0001656,2]
[393601463,1762841410845,731.820074,0.00013699,2]
[393601464,1762841412869,-27.46285658,0.0001656,2]
[393601465,1762841412904,-158.43712628,0.0001656,2]
[393601466,1762841414961,-21.87287372,0.0001656,2]
[393601467,1762841414983,-180.31,0.0001656,2]
[393601468,1762841415005,-26.29554712,0.00016568,2]
[393601469,1762841418937,-5.73006839,0.00016568,2]
[393601470,1762841418961,-218.49357707,0.00016568,2]
[393601471,1762841421636,-81.50642293,0.00016568,2]
[393601472,1762841421662,-183.04886967,0.00016569,2]
[393601473,1762841425033,-348.6851097,0.00016569,2]
[393601507,1762841431830,-273.26602063,0.00016569,2]
[393601509,1762841431840,-489.11155916,0.00016569,2]
[393601511,1762841431849,-284.02087554,0.00016569,2]
[393601514,1762841431861,-215.97912446,0.00016569,2]
[393601516,1762841431870,-500.0,0.00016569,2]
[393601518,1762841431880,-500.0,0.00016569,2]
[393601520,1762841431891,-500.0,0.00016569,2]
[393601522,1762841431902,-168.24508134,0.00016569,2]
[393601524,1762841431914,-283.32353234,0.00016569,2]
[393601526,1762841431928,-48.43138632,0.00016569,2]
[393601528,1762841431937,-256.20811654,0.00016569,2]
[393601531,1762841431947,-189.80271165,0.00016569,2]
[393601533,1762841431957,-265.55802428,0.00016569,2]
[393601536,1762841431966,-631.94641368,0.00016569,2]
[393601538,1762841431975,-568.5365551,0.00016569,2]
[393601540,1762841431984,-234.44197572,0.00016569,2]
[393601542,1762841431994,-181.41018614,0.00016569,2]
[393601544,1762841432003,-185.89998286,0.00016569,2]
[393601546,1762841432013,-160.0,0.00016569,2]
[393601548,1762841432022,-1462.19126789,0.0001657,2]
[393601550,1762841432033,-255.2,0.0001657,2]
[393601646,1762841440104,-3e-08,0.00016569,2]
[393601647,1762841440116,-198.81698998,0.00016569,2]
[393601648,1762841440126,-2420.33681674,0.0001657,2]
[393601649,1762841440137,-409.28017256,0.0001657,2]
[393601650,1762841440148,-8897.91561503,0.0001657,2]
[393601651,1762841440159,-531.71,0.0001657,2]
[393601652,1762841440171,-1097.26320787,0.0001657,2]
[393601655,1762841442434,-265.99927634,0.0001657,2]
[393601708,1762841446021,-348.6851097,0.00016569,2]
[393601710,1762841446031,-5760.51038957,0.0001657,2]
[393601711,1762841446042,-6302.0,0.0001657,2]
[393601712,1762841446079,-355.3,0.0001657,2]
[393601713,1762841446091,-238848.67550528,0.0001657,2]
[393601715,1762841447313,-334.69430061,0.0001657,2]
[393601716,1762841450239,-426.54357432,0.0001657,2]
[393601717,1762841452895,-156.92089254,0.0001657,2]
[393601718,1762841454464,-291.12672364,0.0001657,2]
[393601719,1762841456618,-303.69434824,0.0001657,2]
[393601720,1762841461346,-256.33483776,0.00016569,2]
[393601721,1762841463517,-300.0,0.00016569,2]
[393601722,1762841463545,-65.99058198,0.00016569,2]
[393601723,1762841467115,-177.67458026,0.00016569,2]
[393601724,1762841467140,-99.28579499,0.00016569,2]
[393601725,1762841472021,-193.57893469,0.00016569,2]
[393601726,1762841475513,-207.13527032,0.00016569,2]
[393601727,1762841475540,-95.93852379,0.00016569,2]
[393601728,1762841476419,6437.91330217,0.00016473,2]
[393601729,1762841477788,-148.8516336,0.00016569,2]
[393601730,1762841477815,-226.89941191,0.0001657,2]
[393601731,1762841480744,-168.04291389,0.0001657,2]
[393601732,1762841483586,-383.18815883,0.0001657,2]
[393601733,1762841571653,-185.92558109,0.00016569,2]
[393601734,1762841576433,-114.07441891,0.00016569,2]
[393601735,1762841576459,-119.92630472,0.00016569,2]
[393601736,1762841578661,-166.88930777,0.00016569,2]
[393601737,1762841580268,-23.74511599,0.00016569,2]
[393601738,1762841580291,-142.51288425,0.00016569,2]
[393601739,1762841582968,-237.56081103,0.00016569,2]
[393601740,1762841582989,-25.63299186,0.00016569,2]
[393601741,1762841585350,-300.84977062,0.00016569,2]
[393601742,1762841587155,-173.51723752,0.00016569,2]
[393601743,1762841587179,-0.82880797,0.00016569,2]
[393601744,1762841590122,-255.49245556,0.00016569,2]
[393601745,1762841590144,-102.86706929,0.00016569,2]
[393601746,1762841603495,-397.13293071,0.00016569,2]
[393601747,1762841603524,-500.0,0.00016569,2]
[393601748,1762841603555,-500.0,0.00016569,2]
[393601749,1762841603584,-500.0,0.00016569,2]
[393601750,1762841603613,-500.0,0.00016569,2]
[393601751,1762841603642,-500.0,0.00016569,2]
[393601752,1762841603671,-500.0,0.00016569,2]
[393601753,1762841603700,-500.0,0.00016569,2]
[393601754,1762841603729,-402.81992671,0.00016569,2]
[393601755,1762841604165,-4230.38090899,0.0001657,2]
[393601756,1762841604180,-10000.01,0.0001657,2]
[393601757,1762841604206,-10000.01,0.0001657,2]
[393601758,1762841604232,-10000.01,0.0001657,2]
[393601759,1762841604246,-10000.01,0.0001657,2]
[393601760,1762841604324,-10000.01,0.0001657,2]
[393601761,1762841604488,-10000.01,0.0001657,2]
[393601762,1762841604618,-10000.01,0.0001657,2]
[393601763,1762841604721,-10000.01,0.0001657,2]